fUSD/lending_fUSD_20250202
["ID","MTS","AMOUNT","RATE_DAILY","PERIOD"]
[351315036,1738511524007,-780.81,0.00013561,2]
[351315037,1738511524018,-584.3,0.00013561,2]
[351315038,1738511524028,-500.0,0.00013561,2]
[351315039,1738511524039,-2686.29,0.00013561,2]
[351315040,1738511524049,-808.37,0.00013561,2]
[351315041,1738511524059,-794.83,0.00013561,2]
[351315042,1738511524069,-2679.98,0.00013561,2]
[351315043,1738511524081,-2338.08,0.00013561,2]
[351315044,1738511524091,-1073.23,0.00013561,2]
[351315045,1738511524102,-1683.79,0.00013561,2]
[351315046,1738511524113,-1816.82,0.00013561,2]
[351315047,1738511524123,-4162.42,0.00013561,2]
[351315048,1738511524133,-3144.7,0.00013561,2]
[351315049,1738511524143,-575.75,0.00013561,2]
[351315050,1738511524153,-689.19,0.00013561,2]
[351315051,1738511524163,-305.292181,0.00013561,2]
[351315052,1738511524174,-1191.99,0.00013561,2]
[351315053,1738511524184,-851.33,0.00013561,2]
[351315054,1738511524196,-155.403685,0.00013561,2]
[351315055,1738511524206,-677.75,0.00013561,2]
[351315056,1738511524217,-1595.43,0.00013561,2]
[351315057,1738511524229,-2506.07,0.00013561,2]
[351315058,1738511524240,-539.77,0.00013561,2]
[351315059,1738511524251,-842.15,0.00013561,2]
[351315060,1738511524262,-3571.76,0.00013561,2]
[351315061,1738511524272,-754.64,0.00013561,2]
[351315062,1738511524281,-779.97,0.00013561,2]
[351315063,1738511524292,-3366.95,0.00013561,2]
[351315064,1738511524303,-319.816449,0.00013561,2]
[351315065,1738511524313,-1388.96,0.00013561,2]
[351315066,1738511524324,-1447.22,0.00013561,2]
[351315067,1738511524335,-1621.42,0.00013561,2]
[351315068,1738511524345,-1280.75,0.00013561,2]
[351315069,1738511524355,-2398.8,0.00013561,2]
[351315070,1738511524365,-986.99,0.00013561,2]
[351315071,1738511524375,-6074.3,0.00013561,2]
[351315072,1738511524385,-886.37,0.00013561,2]
[351315073,1738511524395,-1376.7,0.00013561,2]
[351315074,1738511524405,-500.0,0.00013561,2]
[351315075,1738511524415,-715.29,0.00013561,2]
[351315076,1738511524426,-1472.49,0.00013561,2]
[351315077,1738511524437,-2816.92,0.00013561,2]
[351315078,1738511524449,-1537.46,0.00013561,2]
[351315079,1738511524459,-520.69,0.00013561,2]
[351315080,1738511524469,-1782.22,0.00013561,2]
[351315081,1738511524479,-2593.44,0.00013561,2]
[351315082,1738511524489,-1707.98,0.00013561,2]
[351315083,1738511524499,-814.03,0.00013561,2]
[351315084,1738511524509,-2517.19,0.00013561,2]
[351315085,1738511524521,-3495.99,0.00013561,2]
[351315086,1738511524531,-1097.15,0.00013561,2]
[351315087,1738511524541,-3686.72,0.00013561,2]
[351315088,1738511524551,-873.88,0.00013561,2]
[351315089,1738511524562,-4032.99,0.00013561,2]
[351315090,1738511524571,-467.43924662,0.00013561,2]
[351315091,1738511524582,-2612.06,0.00013561,2]
[351315092,1738511524593,-3411.01,0.00013561,2]
[351315093,1738511524604,-2404.98,0.00013561,2]
[351315094,1738511524614,-500.0,0.00013561,2]
[351315095,1738511524623,-866.33,0.00013561,2]
[351315096,1738511524633,-3469.55,0.00013561,2]
[351315097,1738511524643,-1883.12,0.00013561,2]
[351315098,1738511524653,-2058.8,0.00013561,2]
[351315099,1738511524663,-1319.01,0.00013561,2]
[351315100,1738511524673,-608.43,0.00013561,2]
[351315101,1738511524683,-2391.61,0.00013561,2]
[351315102,1738511524693,-4530.32,0.00013561,2]
[351315103,1738511524703,-500.0,0.00013561,2]
[351315104,1738511524713,-1228.14,0.00013561,2]
[351315105,1738511524723,-6198.62,0.00013561,2]
[351315106,1738511524733,-4177.74,0.00013561,2]
[351315107,1738511524742,-853.08,0.00013561,2]
[351315108,1738511524752,-669.71,0.00013561,2]
[351315109,1738511524762,-539.5,0.00013561,2]
[351315110,1738511524772,-1402.67,0.00013561,2]
[351315111,1738511524781,-1801.53,0.00013561,2]
[351315112,1738511524792,-1549.92,0.00013561,2]
[351315113,1738511524802,-820.42,0.00013561,2]
[351315114,1738511524812,-569.44,0.00013561,2]
[351315115,1738511524822,-935.02,0.00013561,2]
[351315116,1738511524833,-816.63,0.00013561,2]
[351315117,1738511524843,-885.67,0.00013561,2]
[351315118,1738511524854,-225.089609,0.00013569,2]
[351315119,1738511524864,-300.0,0.00013569,2]
[351315120,1738511524873,-150.0,0.00013569,2]
[351315121,1738511524883,-438.46,0.00013569,2]
[351315122,1738511524893,-298.51,0.00013569,2]
[351315123,1738511524903,-984.28,0.00013569,2]
[351315124,1738511524913,-150.0,0.00013569,2]
[351315125,1738511524923,-150.0,0.00013569,2]
[351315126,1738511524933,-150.0,0.00013569,2]
[351315127,1738511524943,-150.0,0.00013569,2]
[351315128,1738511524954,-298.51,0.00013569,2]
[351315129,1738511524964,-150.0,0.00013569,2]
[351315130,1738511524974,-876.79,0.00013569,2]
[351315131,1738511524985,-984.28,0.00013569,2]
[351315132,1738511524995,-150.0,0.00013569,2]
[351315133,1738511525005,-984.28,0.00013569,2]
[351315134,1738511525015,-150.0,0.00013569,2]
[351315135,1738511525025,-438.46,0.00013569,2]
[351315136,1738511525035,-298.51,0.00013569,2]
[351315137,1738511525046,-150.0,0.00013569,2]
[351315138,1738511525056,-984.28,0.00013569,2]
[351315139,1738511525066,-438.46,0.00013569,2]
[351315140,1738511525078,-298.51,0.00013569,2]
[351315141,1738511525099,-150.0,0.00013569,2]
[351315142,1738511525110,-980.56,0.00013569,2]
[351315143,1738511525120,-300.0,0.00013569,2]
[351315144,1738511525130,-1968.56,0.00013569,2]
[351315145,1738511525141,-1332.82,0.00013691,2]
[351315146,1738511525151,-1964.01,0.00013691,2]
[351315147,1738511525162,-2603.59,0.00013691,2]
[351315148,1738511525172,-2889.94,0.00013691,2]
[351315149,1738511525182,-4743.23,0.00013691,2]
[351315150,1738511525193,-10523.62,0.00013691,2]
[351315151,1738511525204,-1554.63,0.00013691,2]
[351315152,1738511525215,-1284.59,0.00013691,2]
[351315153,1738511525225,-1679.21,0.00013691,2]
[351315154,1738511525235,-2652.81,0.00013691,2]
[351315155,1738511525245,-654.17,0.00013691,2]
[351315156,1738511525255,-1718.82,0.00013691,2]
[351315157,1738511525266,-1974.37,0.00013691,2]
[351315158,1738511525276,-2000.83,0.00013691,2]
[351315159,1738511525285,-836.56,0.00013691,2]
[351315160,1738511525295,-1343.39,0.00013691,2]
[351315161,1738511525304,-1186.75,0.00013691,2]
[351315162,1738511525314,-226.41394428,0.00013692,2]
[351315163,1738511525324,-596.58,0.00013692,2]
[351315164,1738511525334,-500.0,0.00013692,2]
[351315165,1738511525344,-151.0,0.00013692,2]
[351315166,1738511525353,-165.376134,0.00013692,2]
[351315167,1738511525362,-165.376134,0.00013692,2]
[351315168,1738511525373,-260.520012,0.00013692,2]
[351315169,1738511525383,-260.520012,0.00013692,2]
[351315170,1738511525393,-217.374194,0.00013692,2]
[351315171,1738511525404,-217.374194,0.00013692,2]
[351315172,1738511525414,-151.0,0.00013692,2]
[351315173,1738511525424,-710.49,0.00013692,2]
[351315174,1738511525433,-1187.42,0.00013693,2]
[351315175,1738511525444,-817.82,0.00013693,2]
[351315176,1738511525454,-607.41,0.00013693,2]
[351315177,1738511525464,-500.0,0.00013693,2]
[351315178,1738511525475,-1230.03,0.00013693,2]
[351315179,1738511525485,-615.34,0.00013693,2]
[351315180,1738511525495,-714.07,0.00013693,2]
[351315181,1738511525508,-1449.17,0.00013693,2]
[351315182,1738511525519,-1251.19,0.00013693,2]
[351315183,1738511525529,-1405.84,0.00013693,2]
[351315184,1738511525540,-1494.61,0.00013693,2]
[351315185,1738511525551,-828.44,0.00013693,2]
[351315186,1738511525562,-500.0,0.00013693,2]
[351315187,1738511525572,-676.04,0.00013693,2]
[351315188,1738511525584,-535.23,0.00013693,2]
[351315189,1738511525594,-1723.36,0.00013693,2]
[351315190,1738511525604,-854.84,0.00013693,2]
[351315191,1738511525615,-1459.08,0.00013693,2]
[351315192,1738511525625,-1678.19,0.00013693,2]
[351315193,1738511525635,-571.62,0.00013693,2]
[351315194,1738511525645,-780.5,0.00013693,2]
[351315195,1738511525655,-1296.82,0.00013693,2]
[351315196,1738511525666,-1446.98,0.00013693,2]
[351315197,1738511525677,-618.81,0.00013693,2]
[351315198,1738511525687,-730.18,0.00013693,2]
[351315199,1738511525699,-609.86,0.00013693,2]
[351315200,1738511525709,-323.22780939,0.00013693,2]
[351315201,1738511525719,-978.46,0.00013697,2]
[351315202,1738511525730,-518.13,0.00013697,2]
[351315203,1738511525740,-1147.35,0.00013697,2]
[351315204,1738511525750,-668.46,0.00013697,2]
[351315205,1738511525760,-1211.37,0.00013697,2]
[351315206,1738511525770,-594.76,0.00013697,2]
[351315207,1738511525780,-1093.43,0.00013697,2]
[351315208,1738511525790,-500.0,0.00013697,2]
[351315209,1738511525800,-829.51,0.00013697,2]
[351315210,1738511525811,-500.0,0.00013697,2]
[351315211,1738511525820,-500.0,0.00013697,2]
[351315212,1738511525830,-1097.71,0.00013697,2]
[351315213,1738511525840,-1068.84,0.00013697,2]
[351315214,1738511525850,-500.0,0.00013697,2]
[351315215,1738511525860,-637.34919017,0.00013697,2]
[351315216,1738511525870,-561.08,0.00013697,2]
[351315217,1738511525881,-515.69,0.00013697,2]
[351315218,1738511525891,-653.67,0.00013697,2]
[351315219,1738511525902,-1093.31,0.00013697,2]
[351315220,1738511525913,-1053.18,0.00013697,2]
[351315221,1738511525924,-1273.51,0.00013697,2]
[351315222,1738511525934,-522.28,0.00013697,2]
[351315223,1738511525946,-1239.31,0.00013697,2]
[351315224,1738511525957,-740.34,0.00013697,2]
[351315225,1738511525969,-644.61,0.00013697,2]
[351315226,1738511525980,-913.35,0.00013697,2]
[351315227,1738511525991,-1115.18,0.00013697,2]
[351315228,1738511526001,-1062.0,0.00013697,2]
[351315229,1738511526011,-945.68,0.00013697,2]
[351315230,1738511526023,-607.69,0.00013697,2]
[351315231,1738511526033,-244.7357937,0.00013697,2]
[351315232,1738511526043,-522.96,0.00013697,2]
[351315233,1738511526053,-1035.26,0.00013697,2]
[351315234,1738511526063,-2196.81,0.00013697,2]
[351315235,1738511526073,-1325.26,0.00013697,2]
[351315236,1738511526083,-975.31,0.00013697,2]
[351315237,1738511526094,-1985.37,0.00013697,2]
[351315238,1738511526103,-918.08,0.00013697,2]
[351315239,1738511526114,-2083.26,0.00013697,2]
[351315240,1738511526123,-1965.57,0.00013697,2]
[351315241,1738511526134,-1323.45,0.00013697,2]
[351315242,1738511526144,-1635.63,0.00013697,2]
[351315243,1738511526156,-5662.33,0.00013697,2]
[351315244,1738511526166,-774.16,0.00013697,2]
[351315245,1738511526176,-782.48,0.00013697,2]
[351315246,1738511526186,-7030.17,0.00013697,2]
[351315247,1738511526196,-2514.52,0.00013697,2]
[351315248,1738511526206,-681.48,0.00013697,2]
[351315249,1738511526216,-790.42,0.00013697,2]
[351315250,1738511526226,-3657.25,0.00013697,2]
[351315251,1738511526237,-3049.12,0.00013697,2]
[351315252,1738511526248,-1745.16,0.00013697,2]
[351315253,1738511526259,-1031.35,0.00013697,2]
[351315254,1738511526269,-1816.81,0.00013697,2]
[351315255,1738511526279,-528.0,0.00013697,2]
[351315256,1738511526289,-4052.48,0.00013697,2]
[351315257,1738511526299,-602.22,0.00013697,2]
[351315258,1738511526310,-1474.86,0.00013697,2]
[351315259,1738511526320,-4337.5,0.00013697,2]
[351315260,1738511526331,-1297.61,0.00013697,2]
[351315261,1738511526340,-1453.24,0.00013697,2]
[351315262,1738511526351,-1696.27,0.00013697,2]
[351315263,1738511526361,-1292.86,0.00013697,2]
[351315264,1738511526371,-1155.8,0.00013697,2]
[351315265,1738511526381,-734.3,0.00013697,2]
[351315266,1738511526392,-1512.01,0.00013697,2]
[351315267,1738511526402,-1336.03,0.00013697,2]
[351315268,1738511526413,-686.62,0.00013697,2]
[351315269,1738511526423,-1393.61,0.00013697,2]
[351315270,1738511526433,-1657.23,0.00013697,2]
[351315271,1738511526444,-1120.37,0.00013697,2]
[351315272,1738511526455,-823.51,0.00013697,2]
[351315273,1738511526465,-663.36,0.00013698,2]
[351315274,1738511526476,-500.0,0.00013698,2]
[351315275,1738511526488,-381.2791032,0.00013698,2]
[351315276,1738511526498,-698.15,0.00013698,2]
[351315277,1738511526510,-705.16,0.00013698,2]
[351315278,1738511526524,-531.92,0.00013698,2]
[351315279,1738511526535,-500.0,0.00013698,2]
[351315280,1738511526547,-719.85,0.00013698,2]
[351315281,1738511526556,-594.38,0.00013698,2]
[351315282,1738511526565,-563.78,0.00013698,2]
[351315283,1738511526575,-752.42,0.00013698,2]
[351315284,1738511526586,-743.8,0.00013698,2]
[351315285,1738511526598,-500.0,0.00013698,2]
[351315286,1738511526608,-500.0,0.00013698,2]
[351315287,1738511526619,-725.47,0.00013698,2]
[351315288,1738511526629,-764.06,0.00013698,2]
[351315289,1738511526639,-698.18,0.00013698,2]
[351315290,1738511526650,-791.74,0.00013698,2]
[351315291,1738511526661,-807.25,0.00013698,2]
[351315292,1738511526671,-547.53,0.00013698,2]
[351315293,1738511526682,-837.73,0.00013698,2]
[351315294,1738511526694,-621.45,0.00013698,2]
[351315295,1738511526709,-631.63,0.00013698,2]
[351315296,1738511526720,-799.17,0.00013698,2]
[351315297,1738511526731,-771.95,0.00013698,2]
[351315298,1738511526741,-620.52,0.00013698,2]
[351315299,1738511526751,-618.87,0.00013698,2]
[351315300,1738511526762,-616.27,0.00013698,2]
[351315301,1738511526773,-565.37,0.00013698,2]
[351315302,1738511526783,-500.0,0.00013698,2]
[351315303,1738511526795,-780.81,0.00013698,2]
[351315304,1738511526805,-584.3,0.00013698,2]
[351315305,1738511526815,-500.0,0.00013698,2]
[351315306,1738511526826,-2686.29,0.00013698,2]
[351315307,1738511526837,-808.37,0.00013698,2]
[351315308,1738511526847,-794.83,0.00013698,2]
[351315309,1738511526857,-2679.98,0.00013698,2]
[351315310,1738511526868,-2338.08,0.00013698,2]
[351315311,1738511526878,-1073.23,0.00013698,2]
[351315312,1738511526888,-1683.79,0.00013698,2]
[351315313,1738511526898,-1816.82,0.00013698,2]
[351315314,1738511526908,-644.95,0.00013698,2]
[351315315,1738511526918,-644.95,0.00013698,2]
[351315316,1738511526929,-644.95,0.00013698,2]
[351315317,1738511526940,-644.95,0.00013698,2]
[351315318,1738511526954,-644.95,0.00013698,2]
[351315319,1738511526964,-644.95,0.00013698,2]
[351315320,1738511526975,-644.95,0.00013698,2]
[351315321,1738511526985,-644.95,0.00013698,2]
[351315322,1738511526995,-644.95,0.00013698,2]
[351315323,1738511527005,-4162.42,0.00013698,2]
[351315324,1738511527016,-644.95,0.00013698,2]
[351315325,1738511527027,-644.95,0.00013698,2]
[351315326,1738511527038,-644.95,0.00013698,2]
[351315327,1738511527049,-644.95,0.00013698,2]
[351315328,1738511527060,-644.95,0.00013698,2]
[351315329,1738511527069,-644.95,0.00013698,2]
[351315330,1738511527081,-644.95,0.00013698,2]
[351315331,1738511527091,-644.95,0.00013698,2]
[351315332,1738511527101,-644.95,0.00013698,2]
[351315333,1738511527112,-644.95,0.00013698,2]
[351315334,1738511527122,-3144.7,0.00013698,2]
[351315335,1738511527132,-575.75,0.00013698,2]
[351315336,1738511527142,-689.19,0.00013698,2]
[351315337,1738511527151,-305.292181,0.00013698,2]
[351315338,1738511527162,-1191.99,0.00013698,2]
[351315339,1738511527172,-851.33,0.00013698,2]
[351315340,1738511527182,-677.75,0.00013698,2]
[351315341,1738511527192,-1595.43,0.00013698,2]
[351315342,1738511527205,-2506.07,0.00013698,2]
[351315343,1738511527216,-2873.430661,0.00013698,2]
[351315344,1738511527226,-2873.430661,0.00013698,2]
[351315345,1738511527236,-539.77,0.00013698,2]
[351315346,1738511527246,-842.15,0.00013698,2]
[351315347,1738511527434,-3571.76,0.00013698,2]
[351315348,1738511527444,-754.64,0.00013698,2]
[351315349,1738511527457,-779.97,0.00013698,2]
[351315350,1738511527467,-3366.95,0.00013698,2]
[351315351,1738511527476,-319.816449,0.00013698,2]
[351315352,1738511527486,-222.401033,0.00013698,2]
[351315353,1738511527497,-1388.96,0.00013698,2]
[351315354,1738511527509,-222.401033,0.00013698,2]
[351315355,1738511527519,-1447.22,0.00013698,2]
[351315356,1738511527529,-1621.42,0.00013698,2]
[351315357,1738511527538,-1280.75,0.00013698,2]
[351315358,1738511527549,-151.0,0.00013698,2]
[351315359,1738511527559,-2398.8,0.00013698,2]
[351315360,1738511527568,-986.99,0.00013698,2]
[351315361,1738511527578,-161.73379,0.00013698,2]
[351315362,1738511527588,-6074.3,0.00013698,2]
[351315363,1738511527598,-161.73379,0.00013698,2]
[351315364,1738511527608,-886.37,0.00013698,2]
[351315365,1738511527618,-1376.7,0.00013698,2]
[351315366,1738511527628,-1289.080245,0.00013698,2]
[351315367,1738511527637,-1289.080245,0.00013698,2]
[351315368,1738511527646,-500.0,0.00013698,2]
[351315369,1738511527656,-715.29,0.00013698,2]
[351315370,1738511527665,-1472.49,0.00013698,2]
[351315371,1738511527675,-2816.92,0.00013698,2]
[351315372,1738511527684,-1537.46,0.00013698,2]
[351315373,1738511527694,-520.69,0.00013698,2]
[351315374,1738511527705,-151.0,0.00013698,2]
[351315375,1738511527716,-1782.22,0.00013698,2]
[351315376,1738511527725,-2593.44,0.00013698,2]
[351315377,1738511527735,-1707.98,0.00013698,2]
[351315378,1738511527744,-814.03,0.00013698,2]
[351315379,1738511527754,-2517.19,0.00013698,2]
[351315380,1738511527764,-3495.99,0.00013698,2]
[351315381,1738511527774,-1097.15,0.00013698,2]
[351315382,1738511527785,-3686.72,0.00013698,2]
[351315383,1738511527794,-151.0,0.00013698,2]
[351315384,1738511527803,-873.88,0.00013698,2]
[351315385,1738511527813,-4032.99,0.00013698,2]
[351315386,1738511527823,-2612.06,0.00013698,2]
[351315387,1738511527832,-3411.01,0.00013698,2]
[351315388,1738511527842,-2404.98,0.00013698,2]
[351315389,1738511527851,-151.0,0.00013698,2]
[351315390,1738511527860,-500.0,0.00013698,2]
[351315391,1738511527870,-866.33,0.00013698,2]
[351315392,1738511527880,-3469.55,0.00013698,2]
[351315393,1738511527891,-1883.12,0.00013698,2]
[351315394,1738511527900,-2058.8,0.00013698,2]
[351315395,1738511527910,-1319.01,0.00013698,2]
[351315396,1738511527919,-608.43,0.00013698,2]
[351315397,1738511527927,-2391.61,0.00013698,2]
[351315398,1738511527937,-4530.32,0.00013698,2]
[351315399,1738511527946,-500.0,0.00013698,2]
[351315400,1738511527956,-1228.14,0.00013698,2]
[351315401,1738511527966,-151.0,0.00013698,2]
[351315402,1738511527975,-6198.62,0.00013698,2]
[351315403,1738511527984,-4177.74,0.00013698,2]
[351315404,1738511527994,-853.08,0.00013698,2]
[351315405,1738511528004,-669.71,0.00013698,2]
[351315406,1738511528014,-539.5,0.00013698,2]
[351315407,1738511528023,-1402.67,0.00013698,2]
[351315408,1738511528033,-1801.53,0.00013698,2]
[351315409,1738511528043,-1549.92,0.00013698,2]
[351315410,1738511528052,-820.42,0.00013698,2]
[351315411,1738511528062,-569.44,0.00013698,2]
[351315412,1738511528071,-935.02,0.00013698,2]
[351315413,1738511528080,-816.63,0.00013698,2]
[351315414,1738511528090,-885.67,0.00013698,2]
[351315415,1738511528099,-500.0,0.00013699,2]
[351315416,1738511528109,-200.0,0.00013699,2]
[351315417,1738511528119,-22292.14,0.00013699,2]
[351315418,1738511528129,-300.0,0.00013699,2]
[351315419,1738511528139,-1654.16,0.00013699,2]
[351315420,1738511528148,-252.9,0.00013699,2]
[351315421,1738511528157,-301.94948668,0.00013699,2]
[351315422,1738511528167,-500.0,0.00013699,2]
[351315423,1738511528177,-500.0,0.00013699,2]
[351315424,1738511528186,-316.02225814,0.00013699,2]
[351315425,1738511528196,-600.06703194,0.00013699,2]
[351315426,1738511528207,-520.80085607,0.00013699,2]
[351315427,1738511528216,-500.0,0.00013699,2]
[351315428,1738511528225,-160.32717605,0.00013699,2]
[351315429,1738511528234,-324.18503729,0.00013699,2]
[351315430,1738511528243,-207.04048661,0.00013699,2]
[351315431,1738511528252,-500.0,0.00013699,2]
[351315432,1738511528262,-517.26553847,0.00013699,2]
[351315433,1738511528271,-518.34804438,0.00013699,2]
[351315434,1738511528280,-357.89907218,0.00013699,2]
[351315435,1738511528290,-499.02654819,0.00013699,2]
[351315436,1738511528299,-501.3468199,0.00013699,2]
[351315437,1738511528309,-242.68254914,0.00013699,5]
[351315438,1738511528319,-1295.1,0.000137,2]
[351315439,1738511528328,-15957.14849184,0.00013777,2]
[351315440,1738511528337,-1332.82,0.00013828,2]
[351315441,1738511528346,-1964.01,0.00013828,2]
[351315442,1738511528355,-2603.59,0.00013828,2]
[351315443,1738511528365,-2889.94,0.00013828,2]
[351315444,1738511528374,-4743.23,0.00013828,2]
[351315445,1738511528383,-10523.62,0.00013828,2]
[351315446,1738511528393,-1554.63,0.00013828,2]
[351315447,1738511528403,-1284.59,0.00013828,2]
[351315448,1738511528412,-1679.21,0.00013828,2]
[351315449,1738511528421,-2652.81,0.00013828,2]
[351315450,1738511528430,-654.17,0.00013828,2]
[351315451,1738511528440,-1718.82,0.00013828,2]
[351315452,1738511528452,-1974.37,0.00013828,2]
[351315453,1738511528461,-2000.83,0.00013828,2]
[351315454,1738511528471,-836.56,0.00013828,2]
[351315455,1738511528481,-1343.39,0.00013828,2]
[351315456,1738511528491,-1186.75,0.00013828,2]
[351315457,1738511528500,-596.58,0.00013829,2]
[351315458,1738511528511,-500.0,0.00013829,2]
[351315459,1738511528522,-218.4,0.00013829,2]
[351315460,1738511528532,-218.4,0.00013829,2]
[351315461,1738511528542,-814.253625,0.00013829,2]
[351315462,1738511528551,-814.253625,0.00013829,2]
[351315463,1738511528561,-172.046731,0.00013829,2]
[351315464,1738511528571,-172.046731,0.00013829,2]
[351315465,1738511528581,-231.451958,0.00013829,2]
[351315466,1738511528591,-231.451958,0.00013829,2]
[351315467,1738511528602,-215.347021,0.00013829,2]
[351315468,1738511528612,-215.347021,0.00013829,2]
[351315469,1738511528622,-151.647011,0.00013829,2]
[351315470,1738511528632,-710.49,0.00013829,2]
[351315471,1738511528642,-1187.42,0.0001383,2]
[351315472,1738511528652,-817.82,0.0001383,2]
[351315473,1738511528665,-607.41,0.0001383,2]
[351315474,1738511528676,-500.0,0.0001383,2]
[351315475,1738511528686,-1230.03,0.0001383,2]
[351315476,1738511528696,-615.34,0.0001383,2]
[351315477,1738511528706,-714.07,0.0001383,2]
[351315478,1738511528716,-1449.17,0.0001383,2]
[351315479,1738511528726,-1251.19,0.0001383,2]
[351315480,1738511528736,-1405.84,0.0001383,2]
[351315481,1738511528745,-1494.61,0.0001383,2]
[351315482,1738511528755,-828.44,0.0001383,2]
[351315483,1738511528764,-500.0,0.0001383,2]
[351315484,1738511528773,-676.04,0.0001383,2]
[351315485,1738511528781,-535.23,0.0001383,2]
[351315486,1738511528791,-1723.36,0.0001383,2]
[351315487,1738511528801,-854.84,0.0001383,2]
[351315488,1738511528810,-1459.08,0.0001383,2]
[351315489,1738511528820,-1678.19,0.0001383,2]
[351315490,1738511528829,-571.62,0.0001383,2]
[351315491,1738511528839,-780.5,0.0001383,2]
[351315492,1738511528849,-1296.82,0.0001383,2]
[351315493,1738511528859,-1446.98,0.0001383,2]
[351315494,1738511528869,-618.81,0.0001383,2]
[351315495,1738511528879,-730.18,0.0001383,2]
[351315496,1738511528887,-644.95,0.0001383,2]
[351315497,1738511528897,-609.86,0.0001383,2]
[351315498,1738511528907,-323.22780939,0.00013831,2]
[351315499,1738511528916,-978.46,0.00013834,2]
[351315500,1738511528926,-518.13,0.00013834,2]
[351315501,1738511528935,-1147.35,0.00013834,2]
[351315502,1738511528945,-668.46,0.00013834,2]
[351315503,1738511528955,-1211.37,0.00013834,2]
[351315504,1738511528965,-594.76,0.00013834,2]
[351315505,1738511528974,-1093.43,0.00013834,2]
[351315506,1738511528984,-211.65470744,0.00013834,2]
[351315507,1738511528994,-829.51,0.00013834,2]
[351315508,1738511529004,-500.0,0.00013834,2]
[351315509,1738511529014,-500.0,0.00013834,2]
[351315510,1738511529023,-1097.71,0.00013834,2]
[351315511,1738511529033,-1068.84,0.00013834,2]
[351315512,1738511529042,-500.0,0.00013834,2]
[351315513,1738511529052,-561.08,0.00013834,2]
[351315514,1738511529062,-515.69,0.00013834,2]
[351315515,1738511529072,-653.67,0.00013834,2]
[351315516,1738511529082,-1093.31,0.00013834,2]
[351315517,1738511529092,-1053.18,0.00013834,2]
[351315518,1738511529102,-1273.51,0.00013834,2]
[351315519,1738511529112,-522.28,0.00013834,2]
[351315520,1738511529121,-1239.31,0.00013834,2]
[351315521,1738511529131,-740.34,0.00013834,2]
[351315522,1738511529140,-644.61,0.00013834,2]
[351315523,1738511529150,-913.35,0.00013834,2]
[351315524,1738511529160,-1115.18,0.00013834,2]
[351315525,1738511529170,-1062.0,0.00013834,2]
[351315526,1738511529179,-945.68,0.00013834,2]
[351315527,1738511529189,-607.69,0.00013834,2]
[351315528,1738511529199,-522.96,0.00013834,2]
[351315529,1738511529209,-1035.26,0.00013834,2]
[351315530,1738511529219,-8870.537806,0.00013834,2]
[351315531,1738511529229,-2196.81,0.00013834,2]
[351315532,1738511529238,-1325.26,0.00013834,2]
[351315533,1738511529248,-975.31,0.00013834,2]
[351315534,1738511529257,-1985.37,0.00013834,2]
[351315535,1738511529267,-918.08,0.00013834,2]